bitfinex-derivatives/quotes_SOLF0:USTF0_20250904
["timestamp","ask_amount","ask_price","bid_price","bid_amount"]
[1756945120489,7.65,211.66,211.57,1.57703618]
[1756945120794,7.65,211.66,211.59,1.54517446]
[1756945121189,7.65,211.65,211.59,1.54517446]
[1756945121595,7.65,211.65,211.6,1.54517446]
[1756945122491,4.2514,211.62,211.6,1.54517446]
[1756945122691,7.66,211.61,211.6,1.54517446]
[1756945125795,11.9122,211.58,211.57,0.03186172]
[1756945130098,7.66,211.53,211.44,8.03689808]
[1756945130300,7.66,211.57,211.49,1.54517446]
[1756945130500,7.66,211.57,211.51,1.54517446]
[1756945131096,7.66,211.57,211.47,4.13]
[1756945131296,4.2526,211.56,211.53,1.54517446]
[1756945131595,7.66,211.55,211.53,1.54517446]
[1756945131999,7.66,211.54,211.53,1.54517446]
[1756945133105,11.9132,211.54,211.47,4.13]
[1756945133299,7.66,211.58,211.51,1.54517446]
[1756945134305,7.66,211.55,211.53,1.54517446]
[1756945134808,7.66,211.59,211.53,1.54517446]
[1756945135703,7.66,211.54,211.53,1.54517446]
[1756945137102,7.66,211.56,211.53,1.54517446]
[1756945137309,4.2524,211.57,211.55,1.54517446]
[1756945137504,7.66,211.63,211.55,1.54517446]
[1756945137708,11.9119,211.6,211.58,1.54517446]
[1756945140402,4.2519,211.6,211.58,1.54517446]
[1756945140709,7.66,211.59,211.58,1.54517446]
[1756945142910,7.66,211.59,211.55,1.54517446]
[1756945143208,7.66,211.59,211.53,1.54517446]
[1756945143412,7.66,211.59,211.49,2.41316525]
[1756945143413,4.253,211.54,211.49,2.41316525]
[1756945143711,11.913,211.54,211.49,6.54316525]
[1756945144504,7.66,211.52,211.49,2.41316525]
[1756945145011,7.66,211.52,211.49,6.54316525]
[1756945146114,7.66,211.51,211.49,2.41316525]
[1756945146410,4.2535,211.52,211.49,2.41316525]
[1756945146913,7.66,211.51,211.49,2.41316525]
[1756945148512,4.2535,211.52,211.49,2.41316525]
[1756945148713,7.66,211.51,211.49,2.41316525]
[1756945149209,7.66,211.56,211.49,6.54316525]
[1756945149414,7.66,211.56,211.54,2.41316525]
[1756945149714,11.9127,211.56,211.54,2.41316525]
[1756945150813,4.2522,211.58,211.55,4.13]
[1756945151216,7.66,211.6,211.57,2.41316525]
[1756945153516,4.28204545,211.61,211.57,2.41316525]
[1756945153813,7.15,211.6,211.57,2.41316525]
[1756945154013,4.28204545,211.61,211.57,2.41316525]
[1756945154216,7.15,211.6,211.57,2.41316525]
[1756945154617,4.28204545,211.61,211.57,2.41316525]
[1756945155806,7.15,211.6,211.57,2.41316525]
[1756945156012,4.28204545,211.61,211.57,2.41316525]
[1756945156613,7.15,211.6,211.57,2.41316525]
[1756945156818,4.28204545,211.61,211.57,2.41316525]
[1756945157714,7.15,211.6,211.57,2.41316525]
[1756945158311,4.28204545,211.61,211.57,2.41316525]
[1756945158516,7.15,211.6,211.57,2.41316525]
[1756945159809,4.28204545,211.61,211.57,2.41316525]
[1756945160011,7.15,211.6,211.57,2.41316525]
[1756945160913,0.03024545,211.61,211.57,2.41316525]
[1756945160914,0.03024545,211.61,211.58,4.14]
[1756945161113,0.03024545,211.61,211.6,2.41316525]
[1756945162118,0.03024545,211.61,211.6,6.55316525]
[1756945162613,4.2509,211.65,211.6,6.55316525]
[1756945162816,5.32114229,211.74,211.65,4.14]
[1756945163006,7.15,211.75,211.69,2.41316525]
[1756945163217,11.399,211.75,211.69,2.41316525]
[1756945163618,7.15,211.75,211.69,2.41316525]
[1756945163813,7.15,211.77,211.7,0.03613222]
[1756945164215,7.15,211.77,211.69,2.41316525]
[1756945164417,7.15,211.77,211.71,0.03207612]
[1756945165115,7.15,211.75,211.71,0.03207612]
[1756945165321,4.2486,211.76,211.71,0.03207612]
[1756945165921,7.15,211.75,211.71,0.03207612]
[1756945166321,4.2486,211.76,211.71,0.03207612]
[1756945166622,7.15,211.73,211.71,0.03207612]
[1756945167120,5.32114229,211.88,211.71,0.03207612]
[1756945167121,7.15,211.77,211.72,6.55316525]
[1756945167321,7.15,211.84,211.71,2.44524137]
[1756945167524,7.15,211.84,211.71,2.41316525]
[1756945167717,7.15,211.84,211.75,0.0354369]
[1756945168018,11.3986,211.76,211.75,0.0354369]
[1756945169816,7.15,211.71,211.68,2.41316525]
[1756945170220,4.2494,211.72,211.68,2.41316525]
[1756945170524,7.15,211.71,211.68,2.41316525]
[1756945172728,4.28256521,211.72,211.68,2.41316525]
[1756945172928,7.15,211.71,211.68,2.41316525]
[1756945173530,4.28256521,211.72,211.68,2.41316525]
[1756945174032,7.15,211.71,211.68,2.41316525]
[1756945177829,4.28256521,211.72,211.64,4.18]
[1756945177830,4.2498,211.7,211.64,4.18]
[1756945178036,7.15,211.71,211.64,2.41316525]
[1756945179235,7.15,211.67,211.64,2.41316525]
[1756945179933,7.15,211.67,211.61,122.40676097]
[1756945179934,0.03372455,211.68,211.65,6.59316525]
[1756945180134,7.18372455,211.68,211.65,6.59316525]
[1756945182135,0.03372455,211.68,211.65,6.60316525]
[1756945182341,0.03372455,211.68,211.66,4.19]
[1756945182938,0.03372455,211.68,211.65,2.41316525]
[1756945183330,0.03372455,211.68,211.66,4.19]
[1756945183531,0.03372455,211.68,211.65,2.41316525]
[1756945183933,0.03372455,211.68,211.66,4.19]
[1756945184534,4.249,211.74,211.66,4.19]
[1756945184733,4.249,211.74,211.7,2.41316525]
[1756945184734,11.809,211.74,211.7,2.41316525]
[1756945184937,11.809,211.74,211.66,4.19]
[1756945184938,7.56,211.88,211.73,2.41316525]
[1756945185137,7.56,211.88,211.79,2.41316525]
[1756945185936,7.56,211.82,211.81,0.03130493]
[1756945186232,7.56,211.92,211.81,0.03130493]
[1756945186536,4.2468,211.86,211.81,0.03130493]
[1756945187330,7.56,211.85,211.81,0.03130493]
[1756945187532,4.2468,211.86,211.81,0.03130493]
[1756945187735,7.56,211.85,211.81,0.03130493]
[1756945187936,4.2468,211.86,211.81,0.03130493]
[1756945188136,7.56,211.85,211.81,0.03130493]
[1756945188538,4.2468,211.86,211.81,0.03130493]
[1756945189543,7.56,211.88,211.81,0.03130493]
[1756945189839,7.56,211.88,211.79,2.41316525]
[1756945190042,7.56,211.88,211.82,0.03128456]
[1756945190944,11.8064,211.88,211.82,0.03128456]
[1756945192347,11.8066,211.86,211.82,4.22128456]
[1756945193052,7.56,211.85,211.82,4.22128456]
[1756945193442,7.56,211.85,211.82,0.03128456]
[1756945193742,7.56,211.83,211.82,0.03128456]
[1756945201249,7.56,211.94,211.82,0.03128456]
[1756945201454,7.56,211.94,211.86,6.60316525]
[1756945201756,7.56,211.94,211.88,0.03569556]
[1756945202254,11.8049,211.95,211.89,2.41316525]
[1756945202850,4.2449,211.95,211.9,0.03559168]
[1756945203356,7.56,211.94,211.9,0.03559168]
[1756945203553,4.2449,211.95,211.9,0.03559168]
[1756945203953,7.56,211.94,211.9,0.03559168]
[1756945204155,4.2449,211.95,211.9,0.03559168]
[1756945204556,7.56,211.94,211.9,0.03559168]
[1756945204856,4.2452,211.94,211.9,0.03559168]
[1756945205057,7.56,211.93,211.9,0.03559168]
[1756945205352,4.2452,211.94,211.9,0.03559168]
[1756945205558,7.56,211.93,211.91,1.53877716]
[1756945205752,4.2452,211.94,211.91,1.53877716]
[1756945206056,7.56,211.91,211.9,0.03559168]
[1756945210955,7.56,211.93,211.9,0.03559168]
[1756945211155,4.245,211.94,211.9,0.03559168]
[1756945211760,7.56,211.92,211.9,0.03559168]
[1756945212264,7.56,211.92,211.91,1.53877716]
[1756945212964,12.045,211.94,211.9,0.03559168]
[1756945213259,4.245,211.94,211.91,1.53877716]
[1756945213459,7.8,211.93,211.91,1.53877716]
[1756945213655,4.245,211.94,211.91,1.53877716]
[1756945214361,7.8,211.93,211.91,1.53877716]
[1756945214551,4.245,211.94,211.91,1.53877716]
[1756945214755,7.8,211.93,211.91,1.53877716]
[1756945214955,7.8,211.93,211.9,0.03559168]
[1756945215157,1.53877716,211.95,211.9,0.03559168]
[1756945215360,7.8,211.94,211.9,0.03559168]
[1756945215654,7.8,211.94,211.9,0.03457393]
[1756945216259,7.8,211.91,211.9,0.03457393]
[1756945217360,9.33877716,211.91,211.74,3.90689808]
[1756945217555,7.8,211.87,211.8,1.53877716]
[1756945217760,7.8,211.87,211.81,1.53877716]
[1756945218761,0.0356145,211.86,211.81,1.53877716]
[1756945218963,7.8,211.85,211.81,1.53877716]
[1756945219165,0.0356145,211.86,211.83,1.53877716]
[1756945219458,7.8,211.96,211.85,5.75877716]
[1756945219664,7.8,211.96,211.9,1.53877716]
[1756945220858,4.2452,211.93,211.91,0.03402488]
[1756945221058,7.8,211.92,211.91,0.03402488]
[1756945221259,7.8,212.0,211.91,0.03402488]
[1756945221460,7.8,212.0,211.92,1.53877716]
[1756945221655,7.8,211.96,211.92,1.53877716]
[1756945221857,4.2446,211.97,211.92,1.53877716]
[1756945222067,118.57877716,212.01,211.92,1.53877716]
[1756945222364,7.8,212.0,211.92,1.53877716]
[1756945222565,9.33877716,212.0,211.92,1.53877716]
[1756945222767,7.8,211.97,211.91,0.03402488]
[1756945222961,7.8,211.95,211.91,0.03402488]
[1756945223563,4.2452,211.93,211.91,0.03402488]
[1756945223763,7.8,211.92,211.91,0.03402488]
[1756945228269,4.2452,211.93,211.91,1.57280204]
[1756945231069,7.8,211.92,211.91,1.57280204]
[1756945232275,4.2452,211.93,211.91,1.57280204]
[1756945232462,12.0452,211.93,211.91,1.57280204]
[1756945234070,4.2452,211.93,211.91,1.57280204]
[1756945234273,7.8,212.01,211.91,0.03402488]
[1756945234768,4.2448,211.95,211.93,1.53877716]
[1756945235063,12.0448,211.95,211.93,1.53877716]
[1756945236165,4.2448,211.95,211.91,0.03402488]
[1756945236371,7.8,211.94,211.92,1.53877716]
[1756945236573,4.2452,211.93,211.91,1.57280204]
[1756945236770,7.8,211.92,211.91,0.03402488]
[1756945237572,12.0452,211.93,211.91,0.03402488]
[1756945237872,7.8,211.92,211.91,0.03402488]
[1756945239271,7.8,212.01,211.92,4.22]
[1756945239472,7.8,212.01,211.95,1.53877716]
[1756945239963,7.8,212.01,211.96,0.03411096]
[1756945240873,4.2444,211.98,211.96,0.03411096]
[1756945241073,7.8,211.97,211.96,0.03411096]
[1756945241273,4.2444,211.98,211.96,0.03411096]
[1756945241274,7.8,212.06,211.96,0.03411096]
[1756945241468,4.244,212.0,211.96,1.57288812]
[1756945241667,7.8,211.99,211.96,1.53877716]
[1756945241873,7.8,211.98,211.96,1.57496749]
[1756945242074,7.8,211.98,211.96,0.03619033]
[1756945242272,7.92,211.99,211.96,0.03619033]
[1756945242470,4.244,212.0,211.96,0.03619033]
[1756945242665,7.92,211.99,211.96,0.03619033]
[1756945242870,4.244,212.0,211.96,0.03619033]
[1756945243167,7.92,211.99,211.96,0.03619033]
[1756945243362,4.244,212.0,211.96,0.03619033]
[1756945243572,7.92,211.99,211.96,0.03619033]
[1756945243771,7.92,211.98,211.96,0.03619033]
[1756945246677,5.78187716,212.04,211.96,0.03619033]
[1756945246874,7.92,212.03,211.96,0.03619033]
[1756945247075,7.92,212.01,211.96,0.03619033]
[1756945247282,1.53877716,212.0,211.96,0.03619033]
[1756945247575,7.92,211.99,211.96,0.03619033]
[1756945247973,1.53877716,212.0,211.96,0.03619033]
[1756945248175,7.92,211.99,211.96,0.03619033]
[1756945248473,1.53877716,212.0,211.96,0.03619033]
[1756945248682,7.92,211.99,211.96,0.03619033]
[1756945249069,1.53877716,212.0,211.96,0.03619033]
[1756945249470,7.92,212.0,211.96,0.03619033]
[1756945249669,9.45877716,212.0,211.96,0.03619033]
[1756945250277,4.2438,212.01,211.96,0.03619033]
[1756945250278,5.78257716,212.01,211.96,0.03619033]
[1756945250472,7.92,212.02,211.86,8.11562505]
[1756945250674,7.92,211.97,211.9,1.53877716]
[1756945250972,7.92,211.97,211.92,1.53877716]
[1756945251171,7.92,212.0,211.92,1.53877716]
[1756945251679,12.164,212.0,211.94,1.53877716]
[1756945251876,7.92,211.97,211.94,1.53877716]
[1756945253980,0.03539943,211.98,211.93,0.02973507]
[1756945254278,0.03539943,211.98,211.94,1.53877716]
[1756945254579,0.03539943,211.98,211.93,1.56851223]
[1756945255072,0.03539943,211.98,211.93,0.02973507]
[1756945255479,7.92,211.97,211.93,0.02973507]
[1756945255977,4.27959943,211.98,211.93,0.02973507]
[1756945256178,7.92,211.97,211.93,0.02973507]
[1756945256678,1.53877716,211.96,211.93,0.02973507]
[1756945256869,7.92,211.97,211.93,0.02973507]
[1756945257076,7.92,211.94,211.93,0.02973507]
[1756945257977,4.27969943,211.98,211.93,0.02973507]
[1756945258283,7.92,211.97,211.93,0.02973507]
[1756945258582,4.27969943,211.98,211.93,0.02973507]
[1756945258781,7.92,211.97,211.93,0.02973507]
[1756945259177,4.27969943,211.98,211.93,0.02973507]
[1756945260275,7.92,211.97,211.93,0.02973507]
[1756945260474,7.92,211.93,211.85,1.53877716]
[1756945260880,7.92,211.93,211.82,3.89562505]
[1756945261075,7.92,211.91,211.81,8.14562505]
[1756945261276,7.92,211.91,211.85,1.53877716]
[1756945261685,7.92,211.89,211.85,1.53877716]
[1756945262084,0.02982425,211.9,211.85,1.53877716]
[1756945262483,7.92,211.89,211.85,1.53877716]
[1756945264385,4.27562425,211.9,211.83,1.53877716]
[1756945264582,7.92,211.89,211.83,1.53877716]
[1756945264982,12.1661,211.89,211.83,1.53877716]
[1756945265380,7.92,211.86,211.81,1.53877716]
[1756945265581,7.92,211.86,211.78,6.30234758]
[1756945265785,7.92,211.98,211.81,6.65672253]
[1756945265989,0.03152361,211.84,211.81,2.40672253]
[1756945266180,7.92,211.91,211.82,4.25]
[1756945266379,0.03579003,211.85,211.81,6.30234758]
[1756945266785,0.03579003,211.85,211.82,4.25]
[1756945266981,0.03579003,211.85,211.81,6.30234758]
[1756945267184,0.03579003,211.85,211.82,4.25]
[1756945267386,0.03579003,211.85,211.84,6.65672253]
[1756945267586,7.92,211.91,211.84,6.65672253]
[1756945267989,7.92,211.91,211.84,10.55234758]
[1756945269786,7.92,211.96,211.87,6.65672253]
[1756945270990,12.1647,211.96,211.87,6.65672253]
[1756945272490,7.92,211.96,211.87,6.65672253]
[1756945272895,7.92,211.96,211.9,2.40672253]
[1756945273388,7.92,211.96,211.9,6.64672253]
[1756945273792,7.44,212.0,211.9,6.64672253]
[1756945274196,7.44,212.0,211.91,2.40672253]
[1756945274395,11.684,212.0,211.91,2.40672253]
[1756945275596,7.44,212.0,211.91,2.40672253]
[1756945279397,7.44,212.0,211.9,4.24]
[1756945279597,7.44,212.0,211.92,2.40672253]
[1756945282499,7.44,212.0,211.96,4.24]
[1756945282700,7.44,212.03,211.95,2.40672253]
[1756945283092,7.44,212.03,211.94,2.40672253]
[1756945284803,11.6833,212.03,211.94,2.40672253]
[1756945285004,7.44,212.03,211.93,4.24]
[1756945285396,7.44,212.03,211.93,6.64672253]
[1756945285897,4.2436,212.01,211.93,6.64672253]
[1756945286102,7.44,212.0,211.93,6.64672253]
[1756945286901,7.44,212.0,211.9,4.24]
[1756945287093,7.44,212.0,211.88,2.40672253]
[1756945288905,11.6848,211.96,211.88,2.40672253]
[1756945289209,11.6848,211.96,211.88,6.30234758]
[1756945289410,7.44,211.96,211.88,6.30234758]
[1756945291011,7.44,211.97,211.91,2.40672253]
[1756945291310,7.44,211.97,211.9,2.40672253]
[1756945294915,11.6845,211.97,211.9,2.40672253]
[1756945295914,4.2448,211.96,211.9,2.40672253]
[1756945296215,7.44,211.95,211.9,2.40672253]
[1756945296412,4.2448,211.96,211.9,2.40672253]
[1756945296918,7.44,211.95,211.9,2.40672253]
[1756945297210,4.2448,211.96,211.9,2.40672253]
[1756945297617,7.44,211.93,211.84,147.49224636]
[1756945297818,2.40672253,211.99,211.84,143.59662131]
[1756945298316,7.44,211.98,211.85,2.40672253]
[1756945299512,7.44,211.92,211.85,2.40672253]
[1756945299922,2.40672253,211.96,211.84,143.59662131]
[1756945300214,16.98,212.0,211.87,2.40672253]
[1756945300524,16.98,212.0,211.88,4.24]
[1756945301011,4.2449,211.95,211.88,4.24]
[1756945301217,16.98,212.0,211.9,2.40672253]
[1756945301218,7.44,211.94,211.9,2.40672253]
[1756945301418,7.44,211.94,211.9,6.64672253]
[1756945301618,7.44,212.0,211.91,4.24]
[1756945302014,7.84,211.97,211.91,4.24]
[1756945306723,7.84,211.97,211.94,4.25]
[1756945307224,10.24672253,212.03,211.89,3.89562505]
[1756945307524,7.84,212.03,211.9,2.40672253]
[1756945307718,4.2447,211.96,211.9,2.40672253]
[1756945307921,12.0847,211.96,211.9,2.40672253]
[1756945308524,7.84,211.93,211.9,2.40672253]
[1756945308825,4.245,211.94,211.9,2.40672253]
[1756945309127,4.245,211.94,211.87,3.89562505]
[1756945309128,7.84,212.0,211.87,2.40672253]
[1756945309921,4.2455,211.92,211.87,2.40672253]
[1756945310426,4.2458,211.9,211.87,2.40672253]
[1756945310626,7.84,211.89,211.87,2.40672253]
[1756945310826,4.2458,211.9,211.87,6.65672253]
[1756945311127,7.84,211.91,211.81,8.14562505]
[1756945311826,4.2466,211.87,211.81,8.14562505]
[1756945313832,7.84,211.88,211.81,8.14562505]
[1756945314828,7.84,211.88,211.82,3.89562505]
[1756945315229,7.84,211.88,211.81,8.14562505]
[1756945315830,7.84,211.88,211.82,2.40672253]
[1756945316827,7.84,211.88,211.81,6.30234758]
[1756945317026,7.84,211.88,211.79,6.30234758]
[1756945318529,7.84,211.88,211.79,2.40672253]
[1756945318929,4.2469,211.85,211.79,2.40672253]
[1756945319821,4.2472,211.84,211.79,2.40672253]
[1756945320024,7.84,211.9,211.76,6.30234758]
[1756945320227,2.40672253,211.88,211.76,3.89562505]
[1756945320431,2.40672253,211.88,211.73,5.22125759]
[1756945320432,7.84,211.85,211.75,2.40672253]
[1756945320722,7.84,211.85,211.74,4.25]
[1756945320723,7.84,211.85,211.72,3.89562505]
[1756945321330,7.84,211.85,211.71,2.40672253]
[1756945321526,4.2486,211.77,211.71,2.40672253]
[1756945321731,7.84,211.78,211.7,6.65672253]
[1756945322032,12.0882,211.78,211.7,6.65672253]
[1756945322428,7.87063754,211.76,211.72,0.036024]
[1756945323434,0.03063754,211.76,211.73,4.25]
[1756945323629,0.03063754,211.76,211.73,6.65672253]
[1756945324927,0.03063754,211.76,211.73,2.40672253]
[1756945325329,0.03063754,211.76,211.74,4.25]
[1756945325529,0.03063754,211.76,211.75,5.79067571]
[1756945326631,4.2475,211.82,211.75,5.79067571]
[1756945326833,12.0875,211.82,211.81,1.54067571]
[1756945327331,12.0875,211.82,211.75,4.25]
[1756945327531,7.84,211.81,211.8,1.54067571]
[1756945327931,7.84,211.81,211.78,0.03461645]
[1756945328234,5.32114229,211.97,211.78,0.03461645]
[1756945328235,7.84,211.84,211.8,5.79067571]
[1756945328437,7.84,211.84,211.82,1.54067571]
[1756945328631,7.84,211.89,211.82,1.54067571]
[1756945328834,7.84,211.89,211.83,4.25]
[1756945329033,7.84,211.89,211.88,1.54067571]
[1756945330832,4.2458,211.91,211.88,1.54067571]
[1756945331241,12.0858,211.91,211.86,1.54067571]
[1756945331438,4.2461,211.89,211.86,1.54067571]
[1756945331637,4.2461,211.89,211.84,1.5757655]
[1756945331836,7.84,211.88,211.85,1.54067571]
[1756945332031,4.2461,211.89,211.85,1.54067571]
[1756945332342,7.62,211.88,211.85,1.54067571]
[1756945332541,4.2461,211.89,211.85,1.54067571]
[1756945333239,4.2464,211.87,211.84,0.03058554]
[1756945333432,7.62,211.86,211.84,1.57126125]
[1756945333639,7.62,211.91,211.84,1.54067571]
[1756945334138,7.62,211.87,211.84,1.54067571]
[1756945334332,93.96119672,212.0,211.84,1.54067571]
[1756945334536,4.2458,211.9,211.83,4.26]
[1756945334736,7.62,211.89,211.83,4.26]
[1756945334943,7.62,211.89,211.8,4.26]
[1756945335140,4.2458,211.9,211.85,1.54067571]
[1756945335938,7.62,211.89,211.87,1.54067571]
[1756945336339,4.2458,211.9,211.87,5.80067571]
[1756945336539,4.2458,211.9,211.89,1.54067571]
[1756945336738,11.8658,211.9,211.89,1.54067571]
[1756945337242,11.8658,211.9,211.88,1.54067571]
[1756945337447,7.62,211.89,211.88,1.54067571]
[1756945337647,7.62,211.9,211.88,1.54067571]
[1756945338449,7.62,211.95,211.88,1.54067571]
[1756945338642,9.16067571,211.95,211.88,1.54067571]
[1756945338846,4.2456,211.91,211.88,1.54067571]
[1756945339050,4.2456,211.91,211.89,0.03198551]
[1756945339051,7.62,211.9,211.89,0.03198551]
[1756945339844,4.2451,211.94,211.89,0.03198551]
[1756945340047,7.62,211.93,211.9,1.54067571]
[1756945340840,0.03575657,211.94,211.9,5.80067571]
[1756945341144,7.65575657,211.94,211.92,1.54067571]
[1756945341646,7.65575657,211.94,211.9,4.26]
[1756945341843,7.65575657,211.94,211.92,1.54067571]
[1756945342045,0.03575657,211.94,211.92,1.54067571]
[1756945342343,7.65575657,211.94,211.92,1.54067571]
[1756945342945,0.03575657,211.94,211.92,1.54067571]
[1756945344147,0.03575657,211.94,211.93,1.54067571]
[1756945345349,7.62,211.93,211.91,1.54067571]
[1756945345649,0.03575657,211.94,211.91,1.54067571]
[1756945345851,0.03575657,211.94,211.91,5.80067571]
[1756945346852,0.03575657,211.94,211.92,4.26]
[1756945347050,0.03575657,211.94,211.93,1.54067571]
[1756945347554,0.03575657,211.94,211.93,5.80067571]
[1756945354455,0.03575657,211.94,211.93,4.74]
[1756945354655,0.03575657,211.94,211.93,6.28067571]
[1756945359161,0.03575657,211.94,211.93,5.80067571]
[1756945362263,0.03575657,211.94,211.9,4.27]
[1756945362461,0.03575657,211.94,211.93,5.81067571]
[1756945364262,7.33575657,211.94,211.92,1.54067571]
[1756945365163,0.03575657,211.94,211.92,1.54067571]
[1756945365665,7.33575657,211.94,211.92,1.54067571]
[1756945366962,7.3,211.93,211.92,1.54067571]
[1756945367862,7.3,211.93,211.91,1.54067571]
[1756945368663,7.3,211.91,211.89,1.57266122]
[1756945368957,7.3,211.91,211.89,0.03198551]
[1756945369163,7.3,211.93,211.89,0.03198551]
[1756945370255,7.3,211.9,211.89,0.03198551]
[1756945371460,4.2467,211.86,211.79,3.89562505]
[1756945371668,7.3,211.85,211.83,1.54067571]
[1756945373368,7.3,211.84,211.83,1.54067571]
[1756945373561,1.54067571,211.91,211.83,1.54067571]
[1756945373763,4.2466,211.87,211.84,1.54067571]
[1756945374065,7.3,211.86,211.84,1.54067571]
[1756945374966,4.2466,211.87,211.84,1.54067571]
[1756945375162,7.3,211.86,211.84,1.54067571]
[1756945375370,7.3,211.85,211.78,4.3]
[1756945375670,7.3,211.85,211.78,1.54067571]
[1756945375868,4.2472,211.83,211.8,1.54067571]
[1756945376068,7.3,211.82,211.8,1.54067571]
[1756945376268,4.2472,211.83,211.8,1.54067571]
[1756945376469,7.3,211.81,211.8,1.54067571]
[1756945376669,7.3,211.81,211.79,1.54067571]
[1756945377669,4.2476,211.82,211.79,1.54067571]
[1756945377971,7.3,211.81,211.79,1.54067571]
[1756945378872,4.2476,211.82,211.79,1.54067571]
[1756945379170,7.3,211.81,211.79,1.54067571]
[1756945380170,4.247,211.85,211.79,1.54067571]
[1756945380363,7.3,211.87,211.79,1.54067571]
[1756945380566,7.3,211.87,211.74,4.3]
[1756945380768,7.3,211.87,211.79,1.54067571]
[1756945381068,4.2474,211.83,211.79,1.54067571]
[1756945381561,7.3,211.82,211.79,1.54067571]
[1756945382473,4.2474,211.83,211.79,1.54067571]
[1756945382971,7.3,211.82,211.79,1.54067571]
[1756945383575,4.2474,211.83,211.79,1.54067571]
[1756945383771,7.3,211.82,211.79,1.54067571]
[1756945384968,4.2464,211.87,211.81,5.84067571]
[1756945385174,7.3,211.86,211.85,1.54067571]
[1756945385567,317.1,211.97,211.85,1.54067571]
[1756945385768,7.3,211.96,211.88,1.54067571]
[1756945385968,126.84067571,211.96,211.88,1.54067571]
[1756945386170,4.245,211.94,211.88,1.54067571]
[1756945386363,7.3,211.93,211.88,1.54067571]
[1756945386569,4.245,211.94,211.83,4.3]
[1756945386570,4.245,211.94,211.9,1.54067571]
[1756945387072,7.3,211.93,211.9,1.54067571]
[1756945387469,7.3,211.93,211.88,6.70453153]
[1756945387668,7.3,211.93,211.89,4.3]
[1756945387862,7.3,211.93,211.88,2.40453153]
[1756945388074,7.3,211.93,211.78,3.89562505]
[1756945388270,9.70453153,211.93,211.79,4.3]
[1756945388475,9.70453153,211.93,211.79,6.70453153]
[1756945388675,4.2466,211.87,211.79,6.70453153]
[1756945389170,7.3,211.88,211.79,6.70453153]
[1756945389365,7.3,211.88,211.82,2.40453153]
[1756945389567,7.3,211.88,211.79,4.3]
[1756945389771,7.3,211.85,211.79,2.40453153]
[1756945389973,7.3,211.85,211.73,8.19562505]
[1756945390167,7.3,211.85,211.75,2.40453153]
[1756945390873,7.3,211.86,211.72,4.3]
[1756945391068,7.3,211.86,211.73,2.40453153]
[1756945391274,26.4,211.85,211.73,2.40453153]
[1756945391469,7.3,211.81,211.73,2.40453153]
[1756945392874,4.2484,211.77,211.71,2.40453153]
[1756945393675,7.74,211.74,211.68,6.73453153]
[1756945394476,4.2492,211.73,211.68,2.40453153]
[1756945394671,7.74,211.72,211.65,2.40453153]
[1756945395673,7.74,211.72,211.68,2.40453153]
[1756945395874,9.34,211.8,211.68,2.40453153]
[1756945395875,7.74,211.79,211.68,2.40453153]
[1756945396377,11.9888,211.75,211.68,2.40453153]
[1756945396776,7.74,211.75,211.68,2.40453153]
[1756945396969,7.74,211.75,211.65,2.40453153]
[1756945397373,2.40453153,211.79,211.65,2.40453153]
[1756945397374,4.2494,211.73,211.65,2.40453153]
[1756945397575,7.74,211.72,211.65,2.40453153]
[1756945398384,4.2496,211.71,211.65,2.40453153]
[1756945398582,4.2496,211.71,211.63,2.40453153]
[1756945398583,7.74,211.7,211.63,2.40453153]
[1756945399478,7.74,211.68,211.58,3.89562505]
[1756945399678,7.74,211.68,211.61,2.40453153]
[1756945400588,7.74,211.73,211.64,2.40453153]
[1756945400984,4.2494,211.72,211.64,2.40453153]
[1756945401189,7.74,211.73,211.64,2.40453153]
[1756945401783,7.74,211.73,211.66,2.40453153]
[1756945402379,11.9892,211.73,211.66,2.40453153]